bitfinex-derivatives/quotes_ETHF0:USTF0_20250704
["timestamp","ask_amount","ask_price","bid_price","bid_amount"]
[1751596857499,0.77519,2579.1,2579.0,2.13982]
[1751596858204,3.8519,2579.3,2578.9,2.64502569]
[1751596858205,0.77522,2579.0,2578.9,2.64502569]
[1751596858505,0.77521,2579.1,2579.0,0.77522]
[1751596858902,0.77522,2579.0,2578.9,3.42026569]
[1751596859099,0.77521,2579.1,2579.0,0.77522]
[1751596859601,0.77522,2579.0,2578.9,3.42025569]
[1751596860203,0.77525,2578.9,2578.8,0.6783]
[1751596860501,0.77531,2578.7,2578.6,15.2533]
[1751596861008,0.77529,2578.8,2578.6,16.6237]
[1751596861206,0.77527,2578.9,2578.7,1.3704]
[1751596861407,0.77528,2578.8,2578.7,2.1457]
[1751596862008,1.93791,2579.2,2578.7,2.14569]
[1751596862209,0.77528,2578.8,2578.7,1.3704]
[1751596863214,0.77528,2578.8,2578.7,2.14571]
[1751596863403,0.77528,2578.8,2578.7,1.3704]
[1751596863808,0.77528,2578.8,2578.7,2.14571]
[1751596864510,0.77528,2578.8,2578.7,1.3704]
[1751596866511,0.77528,2578.8,2578.7,2.14571]
[1751596867205,0.77528,2578.8,2578.7,1.3704]
[1751596868009,0.77528,2578.8,2578.7,2.14571]
[1751596868512,0.77528,2578.8,2578.7,1.3704]
[1751596869709,0.77534,2578.6,2578.5,0.6904]
[1751596871108,0.77534,2578.6,2578.5,2.0813]
[1751596872515,0.77534,2578.6,2578.5,2.85667]
[1751596873007,0.77534,2578.6,2578.5,2.0813]
[1751596873210,0.77534,2578.6,2578.5,2.85667]
[1751596873510,0.77534,2578.6,2578.5,5.50169569]
[1751596873717,0.77529,2578.8,2578.7,0.7753]
[1751596873918,3.2078,2578.9,2578.7,3.42031569]
[1751596874111,3.2078,2578.9,2578.8,1.3967]
[1751596874313,3.2078,2579.2,2578.8,4.6045]
[1751596874511,3.2078,2579.2,2578.9,3.34872569]
[1751596874816,3.2078,2579.2,2578.7,2.64502569]
[1751596875015,0.77531,2578.7,2578.6,37.97203]
[1751596875215,0.7753,2578.8,2578.7,0.77531]
[1751596875417,0.77531,2578.7,2578.6,37.97202]
[1751596875614,0.77531,2578.7,2578.6,0.7037]
[1751596875817,0.77531,2578.7,2578.4,12.0212]
[1751596875818,0.77537,2578.5,2578.4,12.0212]
[1751596878416,0.77537,2578.5,2578.4,0.7032]
[1751596878614,0.77543,2578.3,2578.2,93.0227]
[1751596878816,0.77543,2578.3,2578.2,93.79816]
[1751596879016,0.77543,2578.3,2578.2,93.0227]
[1751596879321,4.58347569,2578.5,2578.0,36.482]
[1751596879517,0.77549,2578.1,2578.0,37.1827]
[1751596879717,0.77549,2578.1,2578.0,0.7007]
[1751596879915,0.77549,2578.1,2578.0,1.47622]
[1751596880522,0.77549,2578.1,2578.0,0.7007]
[1751596881021,0.77549,2578.1,2578.0,1.47622]
[1751596881922,0.77549,2578.1,2578.0,0.7007]
[1751596882121,0.77549,2578.1,2578.0,1.47622]
[1751596882919,0.77548,2578.2,2578.0,1.47622]
[1751596883119,0.77548,2578.2,2578.1,2.64502569]
[1751596883318,1.93844,2578.5,2578.1,2.64502569]
[1751596883319,0.77546,2578.3,2578.1,3.42051569]
[1751596883519,3.2078,2578.6,2578.1,5.85282569]
[1751596883718,3.2078,2578.6,2578.5,2.64502569]
[1751596883719,3.98314,2578.6,2578.5,2.64502569]
[1751596883916,3.2078,2578.6,2578.5,3.42039569]
[1751596885325,3.98314,2578.6,2578.5,2.64502569]
[1751596885725,3.2078,2578.6,2578.5,4.09789569]
[1751596886428,3.98314,2578.6,2578.5,4.09789569]
[1751596886823,3.2078,2579.0,2578.5,3.32252569]
[1751596887023,3.98304,2579.0,2578.8,3.42028569]
[1751596887330,3.98304,2579.0,2578.9,2.83925]
[1751596887331,3.2078,2579.0,2578.9,2.83925]
[1751596888218,3.98302,2579.0,2578.9,2.83925]
[1751596888418,3.2078,2579.0,2578.9,2.83925]
[1751596888926,3.98302,2579.0,2578.9,2.83925]
[1751596889324,3.98302,2579.0,2578.9,2.064]
[1751596890322,3.2078,2579.0,2578.9,2.83925]
[1751596890524,0.77517,2579.2,2579.1,0.77517]
[1751596890730,3.98294,2579.3,2579.2,0.77516]
[1751596892030,0.77516,2579.2,2579.1,2.06667]
[1751596892629,3.98295,2579.3,2579.2,0.77516]
[1751596893130,3.2078,2579.3,2579.2,0.77516]
[1751596893332,3.98293,2579.3,2579.2,0.77516]
[1751596893731,3.2078,2579.3,2579.2,0.77516]
[1751596893932,3.98293,2579.3,2579.2,0.77516]
[1751596894133,3.2078,2579.3,2579.2,0.77516]
[1751596894325,3.98293,2579.3,2579.2,0.77516]
[1751596894530,3.98295,2579.3,2579.2,0.77516]
[1751596895733,3.2078,2579.3,2579.2,3.42018569]
[1751596895929,3.2078,2579.3,2579.2,4.12268569]
[1751596897133,3.98293,2579.3,2579.2,4.12268569]
[1751596897732,3.2078,2579.3,2579.2,4.12268569]
[1751596897930,3.98293,2579.3,2579.2,4.12268569]
[1751596898131,3.2078,2579.3,2579.2,4.12268569]
[1751596898636,3.98293,2579.3,2579.2,4.12268569]
[1751596900536,3.2078,2579.3,2579.2,4.12268569]
[1751596902228,3.98293,2579.3,2579.2,4.12268569]
[1751596902435,3.2078,2579.3,2579.2,4.12268569]
[1751596905039,3.98293,2579.3,2579.2,1.47766]
[1751596905241,3.98293,2579.3,2579.2,4.12268569]
[1751596905740,3.2078,2579.3,2579.2,4.12268569]
[1751596907540,3.2078,2579.3,2579.2,0.7025]
[1751596907740,0.77516,2579.2,2579.1,1.2915]
[1751596910247,7.79073569,2579.3,2578.8,11.949]
[1751596910442,7.79073569,2579.3,2578.8,11.288]
[1751596910443,0.77525,2578.9,2578.8,11.288]
[1751596914648,0.77528,2578.8,2578.7,3.2078]
[1751596915548,0.77528,2578.8,2578.7,3.98311]
[1751596918349,0.77528,2578.8,2578.7,0.77531]
[1751596919752,0.77531,2578.7,2578.6,2.83862]
[1751596919951,0.77531,2578.7,2578.6,1.45682]
[1751596921146,0.77537,2578.5,2578.4,3.2078]
[1751596921352,0.77537,2578.5,2578.4,3.9832]
[1751596921552,0.77537,2578.5,2578.4,3.2078]
[1751596922148,0.77537,2578.5,2578.3,0.77541]
[1751596922344,0.7754,2578.4,2578.3,0.77541]
[1751596922652,0.77552,2578.0,2577.9,11.289]
[1751596922958,0.77558,2577.8,2577.7,0.6431]
[1751596924752,0.77561,2577.7,2577.6,0.6362]
[1751596925051,0.77567,2577.5,2577.4,0.6431]
[1751596926252,3.2078,2577.7,2576.8,59.81767]
[1751596926253,2.64502569,2577.6,2576.8,59.81767]
[1751596926445,2.64502569,2577.6,2576.8,3.888]
[1751596926446,0.77585,2576.9,2576.8,3.888]
[1751596926652,0.77591,2576.7,2576.6,11.9697]
[1751596926848,0.77594,2576.6,2576.5,0.6802]
[1751596930754,0.77593,2576.7,2576.5,0.6802]
[1751596930961,3.2078,2576.8,2576.5,0.6802]
[1751596931356,3.9837,2576.8,2576.5,0.6802]
[1751596931551,3.2078,2576.8,2576.7,2.64502569]
[1751596931758,3.2078,2576.8,2576.7,3.42093569]
[1751596932360,3.2078,2577.2,2576.7,2.64502569]
[1751596932664,3.2078,2577.2,2577.0,3.42083569]
[1751596932863,3.98357,2577.2,2577.0,3.42083569]
[1751596933458,3.2078,2577.2,2577.1,0.77579]
[1751596934657,3.2078,2577.2,2577.1,1.43619]
[1751596934858,44.78348,2577.5,2577.2,0.77576]
[1751596935362,44.78348,2577.5,2577.3,0.77573]
[1751596935558,3.98348,2577.5,2577.3,0.77573]
[1751596935764,3.2078,2577.5,2577.3,0.77573]
[1751596935964,3.2078,2577.5,2576.9,2.64502569]
[1751596936153,41.4503,2577.6,2577.1,0.77578]
[1751596936154,3.2078,2577.2,2577.1,0.77578]
[1751596938161,3.2078,2577.2,2577.0,2.07301]
[1751596938366,0.77579,2577.1,2577.0,1.2972]
[1751596939162,6.62860569,2577.2,2577.0,2.07301]
[1751596939366,6.62860569,2577.2,2577.0,1.2972]
[1751596939565,0.77579,2577.1,2577.0,1.2972]
[1751596939864,3.98358,2577.2,2577.0,2.07302]
[1751596940163,3.98358,2577.2,2577.0,1.2972]
[1751596940368,0.77579,2577.1,2577.0,1.2972]
[1751596940563,0.77589,2576.8,2576.3,2.64502569]
[1751596940760,0.77589,2576.8,2576.6,1.3223]
[1751596940968,0.77591,2576.7,2576.6,2.09822]
[1751596941167,0.77591,2576.7,2576.6,1.3223]
[1751596942771,0.77594,2576.6,2576.5,0.6714]
[1751596942966,0.77594,2576.6,2576.5,2.0413]
[1751596943579,0.77594,2576.6,2576.5,2.81727]
[1751596943876,3.2078,2576.9,2576.8,0.77588]
[1751596944273,0.77588,2576.8,2576.7,3.42091569]
[1751596944470,3.98367,2576.9,2576.7,3.42091569]
[1751596944871,0.77588,2576.8,2576.7,3.42091569]
[1751596945876,0.77588,2576.8,2576.7,2.64502569]
[1751596946280,0.77588,2576.8,2576.6,0.77593]
[1751596946681,3.98367,2576.9,2576.5,3.31642569]
[1751596946976,0.77594,2576.6,2576.5,0.6714]
[1751596949675,0.77595,2576.6,2576.4,0.6517]
[1751596949875,3.2078,2576.9,2576.7,0.77591]
[1751596950074,0.7759,2576.8,2576.6,0.77592]
[1751596950276,0.7759,2576.8,2576.7,2.64502569]
[1751596950484,3.98366,2576.9,2576.7,2.64502569]
[1751596950778,3.98366,2576.9,2576.7,3.42092569]
[1751596951182,3.98366,2576.9,2576.8,0.77588]
[1751596951479,3.98366,2576.9,2576.7,3.42092569]
[1751596951881,3.98366,2576.9,2576.8,0.77588]
[1751596952076,3.98366,2576.9,2576.7,3.42091569]
[1751596952388,3.98366,2576.9,2576.8,0.77588]
[1751596952581,0.77588,2576.8,2576.7,3.42092569]
[1751596952982,3.98366,2576.9,2576.8,0.77588]
[1751596953185,0.77588,2576.8,2576.7,0.77589]
[1751596953382,0.77588,2576.8,2576.7,3.42091569]
[1751596953583,3.98367,2576.9,2576.8,0.77588]
[1751596953786,0.77588,2576.8,2576.7,3.42092569]
[1751596954281,0.77588,2576.8,2576.7,2.64502569]
[1751596954485,0.77588,2576.8,2576.6,0.77593]
[1751596954686,0.77588,2576.8,2576.7,0.77591]
[1751596955077,0.77588,2576.8,2576.7,3.42093569]
[1751596955283,3.98367,2576.9,2576.7,3.42093569]
[1751596956182,0.77587,2576.9,2576.8,0.77588]
[1751596956388,0.77586,2576.9,2576.8,0.77587]
[1751596956886,0.77586,2576.9,2576.8,2.11607]
[1751596957479,0.77586,2576.9,2576.8,1.3402]
[1751596958692,0.77586,2576.9,2576.8,2.11608]
[1751596959692,0.77586,2576.9,2576.8,1.3402]
[1751596961592,0.77586,2576.9,2576.8,2.11608]
[1751596962692,0.77586,2576.9,2576.8,1.3402]
[1751596963595,0.77586,2576.9,2576.8,2.11608]
[1751596966795,0.77586,2576.9,2576.8,1.3402]
[1751596967396,0.77586,2576.9,2576.8,2.11608]
[1751596968496,0.77586,2576.9,2576.8,1.3402]
[1751596972895,0.77586,2576.9,2576.8,2.11608]
[1751596976600,3.98365,2577.0,2576.9,0.77585]
[1751596976802,3.98365,2577.0,2576.9,2.05245]
[1751596977101,3.98365,2577.0,2576.9,1.2766]
[1751596979901,3.98365,2577.0,2576.9,1.9589]
[1751596980898,3.2078,2577.0,2576.9,1.9589]
[1751596981098,3.98362,2577.0,2576.9,2.73475]
[1751596981299,3.98362,2577.0,2576.9,1.9589]
[1751596981900,3.98362,2577.0,2576.9,2.73475]
[1751596983406,3.2078,2577.0,2576.9,2.73475]
[1751596985910,3.98362,2577.0,2576.9,2.73475]
[1751596990411,3.2078,2577.0,2576.9,2.73475]
[1751596990913,3.98362,2577.0,2576.9,2.73475]
[1751596991208,3.2078,2577.0,2576.5,6.50230685]
[1751596991412,0.77589,2576.8,2576.7,0.7759]
[1751596992312,0.77588,2576.9,2576.8,0.77588]
[1751596992511,3.8581,2577.0,2576.6,2.0699]
[1751596992712,0.77588,2576.9,2576.8,0.77588]
[1751596992914,3.98364,2577.0,2576.9,0.77585]
[1751596993113,3.98362,2577.0,2576.9,3.42087569]
[1751596995214,3.98362,2577.0,2576.9,2.64502569]
[1751596996016,3.98362,2577.0,2576.9,3.42087569]
[1751596997411,3.98362,2577.0,2576.9,0.77585]
[1751596997609,3.98362,2577.0,2576.9,3.42087569]
[1751596999717,3.2078,2577.0,2576.9,3.42087569]
[1751597000013,3.98362,2577.0,2576.9,3.42087569]
[1751597003210,3.2078,2577.0,2576.9,3.42087569]
[1751597003714,0.7758,2577.1,2577.0,0.77582]
[1751597003913,0.7758,2577.1,2577.0,2.78422]
[1751597004214,0.7758,2577.1,2577.0,2.0084]
[1751597004816,0.7758,2577.1,2577.0,2.78422]
[1751597006609,0.7758,2577.1,2577.0,2.0084]
[1751597007316,0.7758,2577.1,2577.0,2.78422]
[1751597007713,0.7758,2577.1,2577.0,2.0084]
[1751597010619,0.77588,2576.8,2576.7,3.42091569]
[1751597011119,0.77591,2576.7,2576.6,1.9496]
[1751597011314,7.79249569,2576.9,2576.4,7.71678116]
[1751597011519,0.776,2576.4,2576.3,3.85728116]
[1751597011720,0.77606,2576.2,2576.1,0.77608]
[1751597011912,0.77605,2576.3,2576.1,3.42110569]
[1751597012112,0.77605,2576.3,2576.2,1.3344]
[1751597014020,0.77603,2576.3,2576.2,1.3344]
[1751597014616,0.77606,2576.2,2576.1,2.64502569]
[1751597015014,0.77606,2576.2,2576.1,3.96822569]
[1751597015721,0.77606,2576.2,2576.1,4.74431569]
[1751597016122,0.77606,2576.2,2576.1,3.96822569]
[1751597016421,3.98386,2576.2,2576.1,1.3232]
[1751597016919,3.2078,2576.2,2576.1,4.74431569]
[1751597017125,3.2078,2576.5,2576.4,0.77597]
[1751597017319,3.2078,2576.5,2576.4,3.42099569]
[1751597017518,3.98377,2576.5,2576.4,2.64502569]
[1751597018020,0.776,2576.4,2576.3,2.0491]
[1751597018322,0.776,2576.4,2576.3,2.82513]
[1751597019521,0.77606,2576.3,2576.1,1.44487]
[1751597019713,0.77606,2576.3,2576.1,4.08989569]
[1751597019918,0.77606,2576.3,2576.2,1.3803]
[1751597020118,0.77606,2576.3,2576.2,2.15636]
[1751597020823,3.98379,2576.5,2576.4,0.776]
[1751597021019,3.98379,2576.5,2576.4,3.42102569]
[1751597021823,3.2078,2576.5,2576.4,3.42102569]
[1751597023321,0.7759,2576.8,2576.7,0.7759]
[1751597023624,0.7759,2576.8,2576.7,3.42092569]
[1751597023820,0.7759,2576.8,2576.7,2.64502569]
[1751597025022,0.77591,2576.7,2576.6,1.2957]
[1751597026229,0.77591,2576.7,2576.6,2.07164]
[1751597026923,0.77591,2576.7,2576.6,3.94072569]
[1751597027124,0.77591,2576.7,2576.6,1.2957]
[1751597027325,0.77594,2576.6,2576.5,2.10327]
[1751597027519,0.77594,2576.6,2576.5,3.38097]
[1751597028628,3.98373,2576.7,2576.6,0.77594]
[1751597028830,3.2078,2576.7,2576.6,4.69866569]
[1751597031130,0.77591,2576.7,2576.6,4.69866569]
[1751597031732,0.7759,2576.8,2576.7,0.77589]
[1751597031928,0.7759,2576.8,2576.2,1.94014]
[1751597032127,0.7759,2576.8,2575.7,3.88105]
[1751597032128,3.2078,2576.7,2576.4,2.64502569]
[1751597032335,0.77599,2576.5,2576.4,3.42101569]
[1751597033236,3.2078,2576.7,2576.5,0.77595]
[1751597033237,0.77596,2576.6,2576.5,0.77595]
[1751597033432,0.77596,2576.6,2576.5,4.08697569]
[1751597036436,3.98374,2576.7,2576.6,0.77594]
[1751597036831,0.77594,2576.6,2576.5,4.08697569]
[1751597040437,0.77594,2576.6,2576.5,1.44195]
[1751597042636,0.77594,2576.6,2576.5,0.666]
[1751597043136,0.77597,2576.5,2576.4,2.64502569]
[1751597044140,0.77597,2576.6,2576.5,0.77597]
[1751597044340,3.2078,2576.7,2576.4,3.42101569]
[1751597045037,3.98371,2576.7,2576.6,3.42096569]
[1751597045238,3.98371,2576.7,2576.6,2.64502569]
[1751597045634,3.98371,2576.7,2576.6,3.42096569]
[1751597046742,3.98371,2576.7,2576.6,2.64502569]
[1751597047239,3.98371,2576.7,2576.6,4.75246569]
[1751597047440,3.98371,2576.7,2576.6,3.97652569]
[1751597047641,3.98371,2576.7,2576.6,1.3315]
[1751597048140,0.77594,2576.6,2576.5,2.64502569]
[1751597048543,3.2078,2576.7,2576.3,2.64502569]
[1751597048743,0.77599,2576.5,2576.4,0.776]
[1751597049743,3.98372,2576.7,2576.6,0.77594]
[1751597049945,0.77592,2576.7,2576.6,3.42096569]
[1751597051341,0.77592,2576.7,2576.6,3.95282569]
[1751597051544,3.98372,2576.7,2576.6,3.95282569]
[1751597051939,0.77594,2576.6,2576.5,0.6489]
[1751597052342,0.77597,2576.5,2576.4,2.64502569]
[1751597052646,0.776,2576.4,2576.3,0.6489]
[1751597052845,0.776,2576.4,2576.1,0.6562]
[1751597052846,0.77606,2576.2,2576.1,0.6562]
[1751597053349,0.77615,2575.9,2575.8,5.16508116]
[1751597053650,0.77615,2575.9,2575.8,1.9567]
[1751597053947,0.77615,2575.9,2575.8,2.73288]
[1751597054338,0.77614,2576.0,2575.9,0.77615]
[1751597054541,3.2078,2576.1,2576.0,0.77612]
[1751597054942,3.98389,2576.1,2576.0,2.10922]
[1751597055144,3.98389,2576.1,2576.0,1.3331]
[1751597055942,0.77609,2576.1,2576.0,1.3331]
[1751597056543,0.77612,2576.0,2575.9,2.64502569]
[1751597056948,0.77612,2576.0,2575.9,3.99512569]
[1751597057649,46.88182569,2576.0,2575.0,10.0]
[1751597057945,0.77637,2575.2,2575.1,0.6386]
[1751597058143,0.77637,2575.2,2575.1,4.63372569]
[1751597059652,3.98415,2575.3,2575.1,5.41010569]
[1751597059948,3.2078,2575.3,2575.1,4.63372569]
[1751597060153,3.98416,2575.3,2575.2,1.2775]
[1751597060348,3.2078,2575.3,2575.2,1.2775]
[1751597060854,3.2078,2575.3,2575.2,3.92252569]
[1751597061045,3.2078,2575.3,2575.2,4.69889569]
[1751597061353,3.2078,2575.3,2575.1,3.28362569]
[1751597061554,0.77637,2575.2,2575.1,4.56112569]
[1751597061747,3.98416,2575.3,2575.1,5.33752569]
[1751597062154,3.98416,2575.3,2575.2,0.77637]
[1751597062355,3.2078,2575.3,2575.2,0.77637]
[1751597062649,1.42646,2575.6,2575.4,0.77628]
[1751597062953,0.77626,2575.6,2575.5,2.64502569]
[1751597063642,3.2078,2575.7,2575.6,0.77625]
[1751597063847,3.2078,2575.7,2575.6,2.15465]
[1751597064146,3.2078,2575.7,2575.6,2.0142]
[1751597064352,0.7762,2575.8,2575.6,2.79045]
[1751597064550,0.7762,2575.8,2575.7,2.64502569]
[1751597064753,0.7762,2575.8,2575.7,4.02342569]
[1751597065054,3.2078,2576.0,2575.7,4.02342569]
[1751597065255,0.77615,2575.9,2575.7,4.79962569]
[1751597065452,0.77615,2575.9,2575.8,1.3784]
[1751597065652,0.77615,2575.9,2575.8,4.02342569]
[1751597065852,0.77615,2575.9,2575.8,2.15459]
[1751597066154,0.77615,2575.9,2575.8,1.3784]
[1751597066454,0.77615,2575.9,2575.8,2.15459]
[1751597066755,0.77615,2575.9,2575.8,1.3784]
[1751597066956,0.77622,2575.7,2575.6,1.41204]
[1751597067153,3.2078,2576.0,2575.6,2.0441]
[1751597067344,0.77622,2575.7,2575.6,2.82033]
[1751597067544,0.77622,2575.7,2575.6,1.41203]
[1751597067749,0.77622,2575.7,2575.6,0.6358]
[1751597068055,0.77622,2575.7,2575.6,1.41205]
[1751597068653,0.77628,2575.5,2575.4,0.77629]
[1751597068851,0.77628,2575.5,2575.4,0.6441]
[1751597069053,3.2078,2575.7,2575.0,27.46469813]
[1751597069353,0.7764,2575.1,2575.0,26.68827813]
[1751597069850,0.77638,2575.2,2575.0,27.46470813]
[1751597070158,0.7764,2575.1,2575.0,27.46470813]
[1751597070454,0.7764,2575.1,2575.0,15.51627813]
[1751597070754,0.77648,2574.9,2574.3,8.72407813]
[1751597070951,3.2078,2575.1,2574.6,5.51627813]
[1751597071152,3.2078,2575.5,2574.9,8.72407813]
[1751597071355,40.8,2575.4,2575.2,5.51627813]
[1751597071554,3.2078,2575.8,2575.3,0.6441]
[1751597071753,3.2078,2575.8,2575.3,6.16037813]
[1751597071954,0.77626,2575.6,2575.3,6.16037813]
[1751597072157,0.77629,2575.5,2575.3,6.93669813]
[1751597072657,40.8,2575.7,2575.3,6.93669813]
[1751597072859,0.77626,2575.6,2575.4,0.77629]
[1751597073253,0.77628,2575.5,2575.3,6.93669813]
[1751597073649,0.77631,2575.4,2575.3,6.16037813]
[1751597073851,0.77629,2575.5,2575.3,6.93670813]
[1751597074057,0.77629,2575.5,2575.3,6.16037813]
[1751597074361,0.77626,2575.6,2575.3,6.93670813]
[1751597074558,0.77628,2575.5,2575.3,6.93670813]
[1751597074960,40.8,2575.7,2575.6,0.77625]
[1751597075156,40.8,2575.7,2575.3,0.6441]
[1751597075353,0.77626,2575.6,2575.3,6.93668813]
[1751597075759,0.77628,2575.5,2575.3,6.93668813]
[1751597076063,0.77626,2575.6,2575.3,6.93668813]
[1751597076254,36.005,2575.5,2574.5,3.2078]
[1751597076453,3.2078,2574.8,2574.5,0.77658]
[1751597076657,0.77658,2574.5,2574.3,4.63368932]
[1751597076857,3.2078,2574.8,2574.2,6.17647813]
[1751597077062,0.77658,2574.5,2574.3,0.77663]
[1751597077956,0.77659,2574.5,2574.4,0.77661]
[1751597078160,3.2078,2574.8,2574.4,0.77661]
[1751597078556,0.77655,2574.6,2574.4,0.77659]
[1751597079064,3.98431,2574.8,2574.6,0.77655]
[1751597079363,0.77659,2574.5,2574.3,0.77662]
[1751597079659,0.77659,2574.5,2574.4,0.6967]
[1751597079961,0.77678,2573.9,2573.7,0.7768]
[1751597080262,3.2078,2574.1,2573.8,0.6967]
[1751597080461,0.77675,2574.0,2573.8,0.6967]
[1751597080658,0.77676,2573.9,2573.8,0.6967]
[1751597081061,3.2078,2574.1,2573.8,0.6967]
[1751597081365,0.77676,2573.9,2573.8,0.6967]
[1751597081661,3.2078,2574.1,2574.0,0.77673]
[1751597081860,37.3049,2574.4,2573.8,1.47349]
[1751597081861,0.77675,2574.0,2573.8,1.47349]
[1751597082066,0.77672,2574.1,2573.9,0.77674]
[1751597082274,0.77674,2574.0,2573.8,1.47346]
[1751597082462,3.2078,2574.2,2573.8,0.6967]
[1751597082764,0.77672,2574.1,2573.9,0.77675]
[1751597083157,0.77672,2574.1,2573.5,3.2078]
[1751597083158,1.94175,2574.1,2573.5,3.2078]
[1751597083357,3.2078,2573.6,2572.7,3.85706932]
[1751597083561,3.2078,2573.6,2573.1,5.51627813]
[1751597083562,39.3018,2573.6,2573.1,5.51627813]
[1751597083766,3.2078,2573.6,2573.2,0.6391]
[1751597084060,3.2078,2573.6,2573.4,0.77689]
[1751597084264,39.3178,2574.0,2573.5,0.77688]
[1751597084465,0.77683,2573.7,2573.3,0.6772]
[1751597084862,3.2078,2574.0,2573.3,0.6772]
[1751597085061,0.77674,2574.0,2573.6,0.77682]
[1751597085261,0.7768,2573.8,2573.5,3.2078]
[1751597085466,0.7768,2573.8,2573.5,3.98466]
[1751597085668,40.8,2574.3,2573.7,0.7768]
[1751597085869,0.77674,2574.0,2573.8,1.3163]
[1751597086358,0.77672,2574.1,2573.8,2.09308]
[1751597086565,40.8,2574.3,2573.8,2.09308]
[1751597086760,40.8,2574.3,2573.9,1.3974]
[1751597086964,3.2078,2574.4,2574.0,0.77673]
[1751597087160,3.2078,2574.4,2574.1,1.3352]
[1751597087367,0.77664,2574.3,2574.1,1.3352]
[1751597087563,3.2078,2574.4,2574.1,1.3352]
[1751597087564,0.77667,2574.2,2574.1,1.3352]
[1751597087759,0.77665,2574.3,2574.1,1.3352]
[1751597087964,0.77667,2574.2,2574.1,1.3352]
[1751597089861,0.77675,2574.0,2573.8,2.09308]
[1751597090069,0.77676,2574.0,2573.8,1.3163]
[1751597090373,0.77676,2574.0,2573.9,1.3976]
[1751597093168,0.77673,2574.0,2573.9,1.3976]
[1751597093964,0.77673,2574.0,2573.9,2.17436]
[1751597094472,3.2078,2574.4,2574.0,0.7767]
[1751597094671,3.2078,2574.4,2574.0,2.125]
[1751597094873,0.77676,2573.9,2573.8,0.6772]
[1751597096668,3.2078,2574.4,2573.8,0.6772]
[1751597096874,3.98443,2574.4,2574.2,0.77665]
[1751597097173,3.2078,2574.4,2574.3,0.6839]
[1751597097379,3.98441,2574.4,2574.3,0.6839]
[1751597097573,3.98441,2574.4,2574.3,1.46054]
[1751597097768,3.98441,2574.4,2574.3,2.85384]
[1751597097973,3.98441,2574.4,2574.3,2.0772]
[1751597098375,3.98441,2574.4,2574.3,2.85384]
[1751597098771,3.2078,2574.4,2574.3,2.85384]
[1751597098968,0.7766,2574.5,2574.4,0.77661]
[1751597099166,0.77656,2574.6,2574.5,0.77656]
[1751597099571,3.98433,2574.7,2574.6,0.77655]
[1751597100269,3.2078,2574.7,2574.4,1.3151]
[1751597100475,0.77646,2574.9,2574.8,0.77649]
[1751597100675,0.7765,2574.8,2574.7,0.77651]
[1751597100876,0.77652,2574.7,2574.6,1.3151]
[1751597101377,0.77655,2574.6,2574.5,3.98438]
[1751597101572,0.77653,2574.7,2574.6,0.77654]
[1751597101772,0.77655,2574.6,2574.5,3.2078]
[1751597101977,40.8,2575.0,2574.5,3.98435]
[1751597102476,0.77655,2574.6,2574.5,3.98435]
[1751597102678,0.77655,2574.6,2574.5,3.2078]
[1751597102971,40.8,2575.0,2574.5,3.2078]
[1751597103177,40.8,2575.0,2574.5,4.5616]
[1751597103480,0.77655,2574.6,2574.5,4.5616]
[1751597103778,0.77655,2574.6,2574.5,3.2078]
[1751597104368,0.77655,2574.6,2574.5,3.98438]
[1751597104572,40.8,2575.0,2574.5,3.2078]
[1751597104768,0.77653,2574.7,2574.5,3.98436]
[1751597104974,0.77652,2574.7,2574.6,1.3538]
[1751597105781,0.77652,2574.7,2574.6,2.13035]
[1751597106079,0.77652,2574.7,2574.6,2.13034]
[1751597106274,0.77655,2574.6,2574.5,3.98436]
[1751597107274,0.77653,2574.7,2574.6,0.77654]
[1751597107477,0.77655,2574.6,2574.5,3.98436]
[1751597108181,0.77655,2574.6,2574.5,3.2078]
[1751597108581,0.77655,2574.6,2574.5,4.6047]
[1751597109082,0.77655,2574.6,2574.5,5.38127]
[1751597109481,0.77654,2574.7,2574.6,0.77655]
[1751597109681,40.8,2575.0,2574.6,1.3969]
[1751597109881,3.2078,2575.5,2574.7,1.3532]
[1751597110182,0.77644,2575.0,2574.8,2.17337]
[1751597110382,0.77641,2575.1,2574.9,2.17336]
[1751597110587,0.77641,2575.1,2574.9,1.3969]
[1751597110782,0.77641,2575.1,2574.9,2.17335]
[1751597111184,41.57636,2575.3,2575.2,0.77637]
[1751597111784,0.77636,2575.3,2575.2,0.77637]
[1751597112183,3.2078,2575.5,2575.2,2.06517]
[1751597112392,40.8,2575.4,2575.2,1.2888]
[1751597112587,40.8,2575.4,2575.3,2.06514]
[1751597112791,40.8,2575.4,2574.8,3.2078]
[1751597112987,0.7764,2575.1,2574.9,0.77644]
[1751597113187,0.77643,2575.0,2574.9,2.06524]
[1751597113790,0.77643,2575.0,2574.9,1.2888]
[1751597114097,0.77643,2575.0,2574.9,2.06526]
[1751597114485,0.77641,2575.1,2574.9,2.06526]
[1751597114689,0.77641,2575.1,2575.0,1.3282]
[1751597114894,40.8,2575.4,2575.0,1.3282]
[1751597115094,0.77635,2575.3,2575.1,2.09098]
[1751597115294,0.77635,2575.3,2575.2,2.10457]
[1751597115692,41.57635,2575.3,2575.2,1.3282]
[1751597115891,3.2078,2575.5,2575.2,2.10457]
[1751597116193,0.77634,2575.3,2575.2,2.10457]
[1751597116391,0.77634,2575.3,2575.2,0.77637]
[1751597116597,0.77637,2575.2,2575.1,1.3146]
[1751597116793,0.77637,2575.2,2575.1,0.6536]
[1751597119496,0.77655,2574.6,2574.5,3.2078]
[1751597119702,0.77654,2574.7,2574.6,0.77655]